[Event "Bangabandhu Premier Div League 2022"]
[Site "Dhaka"]
[Date "2022.12.02"]
[Round "3.7"]
[White "Iniyan, P."]
[Black "Abdul, Momin"]
[Result "1-0"]
[ECO "D53"]
[WhiteElo "2534"]
[BlackElo "1900"]
[Annotator "TA"]
[PlyCount "63"]
[EventDate "2022.12.01"]
[EventCountry "BAN"]
[SourceTitle "playchess.com"]
[Source "ChessBase"]
[SourceQuality "1"]
[TimeControl "40/5400+30:1800+30"]

{[%evp 14,63,40,39,45,45,49,54,108,105,151,152,141,124,239,225,224,232,235,234,238,234,481,472,452,356,581,535,567,570,950,1301,1283,1298,1276,1275,1164,1149,1109,906,1071,1025,1268,1190,1152,1108,29994,29995,29996,29997,29998,29999]} 1. d4 {[%emt 1:31:00]} d5 {[%emt 0:05:12]} 2. c4 {[%emt 0:00:00]} e6 {[%emt 0:00:15]} 3. Nc3 {[%emt 0:00:00]} Nf6 {[%emt 1:26:33]} 4. cxd5 {[%emt 0:00:00]} exd5 {[%emt 0:00:00]} 5. Bg5 {[%emt 0:00:00]} Be7 {[%emt 0:00:00]} 6. e3 {[%emt 0:02:30]} Nbd7 {[%emt 0:00:00]} 7. Bd3 {[%emt 0:00:30]} a6 {[%emt 0:02:00] 7...c6 is the modern continuation.} 8. Nf3 {[%emt 0:00:30]} c5 {[%emt 0:00:30] [#] D53: Queen's Gambit Declined: 4 Bg5 Be7: Early deviations.} 9. Bc2 $146 {[%emt 0:00:30]} ({Predecessor:} 9. dxc5 Nxc5 10. O-O Nxd3 11. Qxd3 Be6 12. Rad1 O-O 13. Bxf6 Bxf6 14. Nxd5 Bxd5 15. Qxd5 Qxd5 16. Rxd5 Bxb2 {1-0 (45) Vizzotto,B (2050)-Cavalheiro,P (1232) Sao Carlos 2019}) 9... c4 {[%emt 0:00:30]} 10. Ne5 {[%emt 0:00:30]} Qc7 {[%emt 0:00:00]} (10... h6 $14 11. Bf4 Qb6) 11. Nxd7 $16 {[%emt 0:00:00] White has more active pieces. The black rooks are badly placed.} Qxd7 {[%emt 0:00:00]} ({Black should play} 11... Bxd7 12. Bxf6 Bxf6) 12. Bxf6 {[%emt 0:01:00]} Bxf6 {[%emt 0:00:00]} 13. Qf3 {[%emt 0:00:30]} b5 {[%emt 0:00:00]} (13... Bd8 $16 {keeps fighting.} 14. O-O (14. Qxd5 Qxd5 15. Nxd5 Be6 $16) (14. Nxd5 Ba5+ 15. Ke2 O-O $16) 14... b5) 14. Nxd5 $18 {[%emt 0:00:00]} (14. Qxd5 $6 Bb7 15. Qxd7+ Kxd7 $16) 14... Bb7 {[%emt 0:02:30]} 15. Nxf6+ {[%emt 0:00:00]} gxf6 {[%emt 0:00:00]} 16. Qxf6 {[%emt 0:00:00]} Rg8 {[%emt 0:01:00]} 17. Rg1 {[%emt 0:02:00]} Rxg2 $2 {[%emt 0:00:30]} (17... Qe7 18. Qxe7+ Kxe7) 18. Rxg2 {[%emt 0:00:00]} Bxg2 {[%emt 0:00:30]} 19. f3 {[%emt 0:01:00] [#] Qh8+ is the strong threat.} (19. Bxh7 Qe7 20. Qh8+ Kd7 $18) (19. Qh8+ Ke7 20. Qe5+ (20. Qxh7 Qg4 $18) 20... Kf8 $18) 19... Rd8 $2 {[%emt 0:00:00]} (19... Qe6 20. Qf4 Bh3) 20. Kf2 {[%emt 0:00:00]} (20. Qxa6 Bxf3 21. Kd2 (21. Bxh7 Qg4 $11) 21... Bc6 $16) 20... Bh3 {[%emt 0:00:00]} 21. Rg1 {[%emt 0:01:00][%cal Ba1g1,Bg1g8,Bg8d8,Bd8d5][%mdl 32]} Qe7 {[%emt 0:00:00]} 22. Qc6+ {[%emt 0:00:00]} Qd7 {[%emt 0:02:00]} 23. Rg8+ {[%emt 0:00:00]} Ke7 {[%emt 0:00:00]} 24. Qc5+ {[%emt 0:01:30]} (24. Qxa6 $2 Rxg8 25. Bxh7 Rg2+ 26. Ke1 Qd6 27. Qxd6+ Kxd6 $19) 24... Qd6 {[%emt 0:00:00]} 25. Qg5+ {[%emt 0:00:30]} ({Not} 25. Bxh7 Qxc5 26. dxc5 Rd2+ 27. Kg3 Bd7 $14) 25... f6 {[%emt 0:00:00]} 26. Qg7+ {[%emt 0:00:30]} Ke6 {[%emt 0:00:00]} 27. Rxd8 {[%emt 0:00:00]} ({Less strong is} 27. Qxh7 Qxh2+ 28. Ke1 Qh1+ 29. Kd2 Qxf3 $14) 27... Qxh2+ {[%emt 0:00:00]} 28. Ke1 {[%emt 0:01:00][%csl Gd8][%cal Rg7d7,Bf2e1,Be1d2,Bd2c1][%mdl 32] [#]} Qh1+ {[%emt 0:03:00]} 29. Kd2 {[%emt 0:00:00][%csl Gd8][%cal Rg7d7]} Qh2+ {[%emt 0:00:00]} 30. Kc1 {[%emt 0:00:00][%csl Gd8][%cal Rg7d7] White mates.} Qh1+ {[%emt 0:00:00]} 31. Bd1 {[%emt 0:00:00][%csl Gd8][%cal Rg7d7]} Kf5 {[%emt 0:01:30]} 32. Rd5+ {[%emt 0:00:00] Black got outplayed after the opening.   Weighted Error Value: White=0.10 (very precise) /Black=0.88} 1-0

[Event "Bangabandhu Premier Div League 2022"]
[Site "Dhaka"]
[Date "2022.12.02"]
[Round "3.7"]
[White "Kushagra Mohan"]
[Black "Parveen, Tanima"]
[Result "1-0"]
[ECO "C96"]
[WhiteElo "2390"]
[BlackElo "1967"]
[Annotator "TA"]
[PlyCount "113"]
[EventDate "2022.11.30"]
[EventType "team-tourn"]
[EventCountry "BAN"]
[SourceTitle "playchess.com"]
[Source "ChessBase"]
[SourceQuality "1"]
[TimeControl "40/5400+30:1800+30"]

{[%evp 23,113,40,61,0,0,0,0,0,0,-12,0,-12,-10,0,-3,-13,-15,-28,-22,-37,-30,-79,-79,-74,-68,-75,-48,-49,-47,-66,-64,-52,-55,-64,-42,-49,-11,-140,-41,-41,-36,-121,-26,-25,-22,-80,-29,-31,-33,-47,-45,-38,-50,-47,-37,-166,22,12,107,29,35,37,162,174,378,355,358,359,334,241,432,398,390,403,385,379,373,0,0,0,0,0,0,0,26,35,28,43,126,179,475,427]} 1. e4 {[%emt 0:01:39]} e5 {[%emt 0:00:14]} 2. Nf3 {[%emt 0:00:01]} Nc6 {[%emt 0:00:12]} 3. Bb5 {[%emt 0:00:05]} a6 {[%emt 0:00:19]} 4. Ba4 {[%emt 0:00:02]} Nf6 {[%emt 0:00:20]} 5. O-O {[%emt 0:00:09]} b5 {[%emt 0:00:33]} 6. Bb3 {[%emt 0:00:02]} Be7 {[%emt 0:00:35]} 7. Re1 {[%emt 0:00:03]} d6 {[%emt 0:00:17]} 8. c3 {[%emt 0:00:01]} O-O {[%emt 0:00:33]} 9. h3 {[%emt 0:00:02]} Na5 {[%emt 0:00:26]} 10. Bc2 {[%emt 0:00:02]} c5 {[%emt 0:00:38]} 11. d4 {[%emt 0:00:01]} cxd4 {[%emt 0:01:20]} 12. cxd4 {[%emt 0:00:01]} Qc7 {[%emt 0:02:06]} 13. d5 {[%emt 0:00:15] C96: Closed Ruy Lopez: Chigorin Defence: 11 d4, replies other than 11...Qc7.} (13. Nc3 $14) 13... Bd7 $11 {[%emt 0:01:10]} 14. Nbd2 {[%emt 0:00:23]} Rfc8 {[%emt 0:04:18]} 15. Bd3 {[%emt 0:03:16] The position is equal.} Nb7 {[%emt 0:06:39]} 16. Nb3 {[%emt 0:00:06]} a5 {[%emt 0:05:56][%cal Ba6a5,Ba5a4][%mdl 32]} 17. Be3 {[%emt 0:00:47]} a4 {[%emt 0:03:01]} 18. Rc1 {[%emt 0:00:16]} Qd8 {[%emt 0:06:07]} 19. Rxc8 {[%emt 0:00:24]} Rxc8 {[%emt 0:00:53]} 20. Nbd2 {[%emt 0:00:04]} Nc5 {[%emt 0:04:00]} 21. Bb1 {[%emt 0:00:21]} Qa5 {[%emt 0:09:00] [#]} 22. a3 $146 {[%emt 0:18:24]} (22. Bc2 $11 {might be stronger.}) ({Predecessor:} 22. Bxc5 Rxc5 23. Nf1 Qc7 24. Qd2 Qc8 25. Ng3 g6 26. Ne2 Nh5 27. Rc1 {½-½ (70) Flak,J (2061)-Slapak,Z (2173) Slovakia 2008}) 22... b4 $1 $17 {[%emt 0:05:43]} 23. Nc4 {[%emt 0:00:31]} Qb5 {[%emt 0:01:56]} 24. Bxc5 {[%emt 0:00:51]} Rxc5 {[%emt 0:03:34]} 25. Bd3 {[%emt 0:03:23][%cal Oc4d6]} Qb8 {[%emt 0:10:07]} 26. Qd2 {[%emt 0:02:34]} b3 {[%emt 0:07:52]} 27. Rc1 {[%emt 0:05:38]} Qc7 {[%emt 0:04:12][%cal Of6e4]} 28. Qb4 $1 {[%emt 0:00:40]} Bb5 {[%emt 0:01:41][%cal Of6e4]} 29. Nfd2 {[%emt 0:01:14]} Nh5 {[%emt 0:04:12] And now ...Bg5 would win.} 30. Rd1 {[%emt 0:01:27]} (30. Rc3 $11) 30... Nf4 {[%emt 0:04:58]} (30... g6 $17 31. Kh2 (31. Nxe5 $2 dxe5 32. d6 Bxd6 $19) 31... Qa7) 31. Bf1 $15 {[%emt 0:00:26]} h6 {[%emt 0:13:08]} 32. Kh2 {[%emt 1:03:22]} (32. h4 $15) 32... Kh7 {[%emt 0:00:00]} (32... Bg5 $17 {Threatens to win with ...Nh5.} 33. g3 Nh5) 33. g3 $11 {[%emt 0:00:30]} Nh5 {[%emt 0:00:00]} 34. h4 {[%emt 0:00:00] [#] Inhibits Bg5.} (34. Ne3 $11 Bd7 35. Ndc4) 34... Nf6 {[%emt 0:00:00]} (34... Bxh4 $1 $17 {aiming for ...Bg5.} 35. gxh4 Qd8) 35. Ne3 {[%emt 0:00:00]} Bd7 {[%emt 0:00:00]} 36. Bd3 {[%emt 0:00:00]} Ng4+ {[%emt 0:00:00]} 37. Nxg4 {[%emt 0:00:00]} Bxg4 {[%emt 0:00:00]} 38. Rf1 {[%emt 0:00:00]} Bd7 {[%emt 0:00:00]} 39. Nb1 {[%emt 0:00:00] [#]} ({Better is} 39. Kg2 $15) 39... Rc1 $2 {[%emt 0:00:00]} (39... Bd8 $1 $19 40. Qe1 Qc8) 40. Nc3 $36 {[%emt 0:00:00][%mdl 2048] White fights for an advantage.} Qa7 {[%emt 0:02:11] [#]} (40... Rxf1 41. Bxf1 Qc5 42. Qxc5 dxc5 43. Kg2 $14) (40... Rxc3 $1 $11 {keeps the balance.} 41. bxc3 Bd8) 41. Kg1 {[%emt 0:00:00]} (41. Rxc1 $2 {too greedy.} Qxf2+ 42. Kh1 Qxg3 $19) (41. Kg2 $1 $16 Rxf1 42. Bxf1) 41... Rxf1+ {[%emt 0:30:45]} 42. Kxf1 {[%emt 0:00:00] Hoping for Bb5.} Qc7 {[%emt 0:00:00]} ({Black should try} 42... Bd8 $14) 43. Bb5 $18 {[%emt 0:00:00]} Qc8 {[%emt 0:00:00]} (43... Bh3+ 44. Kg1 Qc8 45. Qxa4 (45. Bxa4 Qg4 $14) 45... Bxh4) 44. Bxd7 {[%emt 0:00:00]} ({Not} 44. Qxa4 Bh3+ 45. Ke1 Bd8 46. Qxb3 Bb6 $18) 44... Qxd7 {[%emt 0:00:00]} 45. Qxa4 {[%emt 0:00:00][%mdl 4096] Endgame KQB-KQN} Qh3+ {[%emt 0:00:00]} 46. Ke1 {[%emt 0:00:00]} Bf6 $2 {[%emt 0:00:00]} (46... Bd8 47. Qxb3 Ba5) 47. Qxb3 {[%emt 0:00:00]} g5 {[%emt 0:00:00]} 48. hxg5 {[%emt 0:00:00]} Bxg5 {[%emt 0:00:00]} 49. Qc4 {[%emt 0:00:00]} Bc1 {[%emt 0:00:00]} 50. Nd1 {[%emt 0:00:00]} (50. Qb5 $18) 50... Qh1+ $11 {[%emt 0:00:00]} 51. Ke2 {[%emt 0:00:00]} Qh5+ {[%emt 0:00:00]} 52. g4 {[%emt 0:00:00]} Qxg4+ {[%emt 0:00:00]} 53. Ke1 {[%emt 0:00:00]} Qg1+ {[%emt 0:00:00]} 54. Qf1 {[%emt 0:00:00]} Qg5 {[%emt 0:00:00][%csl Gc1][%cal Rg5d2]} 55. Qd3 {[%emt 0:00:00] Inhibits Qd2+. Black must now prevent Qf3.} Qh5 {[%emt 0:00:56] Prevents Qf3.} ({Black should play} 55... Qg4 $1 $14) 56. a4 {[%emt 0:00:00]} (56. Nc3 $16) 56... Qh1+ $2 {[%emt 0:04:02]} (56... Qg4 {was worth a try.} 57. Ne3 Bxe3 58. Qxe3 h5) 57. Ke2 {[%emt 0:00:00] Weighted Error Value: White=0.30/Black=0.44} 1-0

[Event "Bangabandhu Premier Div League 2022"]
[Site "Dhaka"]
[Date "2022.12.02"]
[Round "3.8"]
[White "Harikrishnan.A.Ra"]
[Black "Jabed Al Azad"]
[Result "1-0"]
[ECO "D02"]
[WhiteElo "2409"]
[BlackElo "2084"]
[Annotator "TA"]
[PlyCount "101"]
[EventDate "2022.11.30"]
[EventType "team-tourn"]
[EventCountry "BAN"]
[SourceTitle "playchess.com"]
[Source "ChessBase"]
[SourceQuality "1"]
[TimeControl "40/5400+30:1800+30"]

{[%evp 9,101,-3,8,10,11,10,17,9,15,10,39,16,16,16,16,16,16,10,11,13,15,14,27,-27,-8,-6,0,0,11,5,15,29,83,76,75,90,101,75,100,22,24,29,46,46,46,46,46,46,46,46,46,46,46,46,46,39,39,39,39,39,46,8,8,8,9,8,14,0,14,14,14,14,14,14,181,181,181,181,181,181,531,269,602,444,420,269,1356,1269,1227,1171,1329,1329,1019,956]} 1. d4 {[%emt 0:00:04]} d5 {[%emt 0:10:03]} 2. Nf3 {[%emt 0:00:08]} Nf6 {[%emt 0:00:08]} 3. c3 {[%emt 0:00:09]} c6 {[%emt 0:01:44]} 4. Qc2 {[%emt 0:00:15]} g6 {[%emt 0:00:03]} 5. Bf4 {[%emt 0:00:24]} Bf5 {[%emt 0:00:03]} 6. Qb3 {[%emt 0:00:05] D02: 1 d4 d5 2 Nf3 sidelines, including 2...Nf6 3 g3 and 2...Nf6 3 Bf4.} Qb6 {[%emt 0:00:28]} 7. h3 {[%emt 0:00:20]} Nbd7 {[%emt 0:01:50]} 8. Nbd2 {[%emt 0:00:12] The position is equal.} h5 {[%emt 0:03:58]} 9. e3 {[%emt 0:03:20] [#]} Bg7 $146 {[%emt 0:01:23]} ({Predecessor:} 9... Be4 10. Ng5 Bh6 11. h4 Bf5 12. f3 Rc8 13. a4 Nf8 14. a5 Qxb3 15. Nxb3 N6d7 {1-0 (38) Zurek,M (2390)-Pannwitz,J Pardubice 1993}) 10. Be2 {[%emt 0:07:49]} Ne4 {[%emt 1:15:50]} 11. Nxe4 {[%emt 0:07:46]} Bxe4 {[%emt 0:00:00]} 12. O-O {[%emt 0:00:28]} Bxf3 {[%emt 0:00:00]} 13. Bxf3 {[%emt 0:00:28]} e5 {[%emt 0:00:00]} 14. Bh2 {[%emt 0:02:45]} Qxb3 {[%emt 0:00:00]} 15. axb3 {[%emt 0:00:03]} exd4 {[%emt 0:00:00]} 16. cxd4 {[%emt 0:12:32]} (16. exd4 $142 O-O 17. Be2) 16... O-O {[%emt 0:00:00]} 17. g4 {[%emt 0:00:53]} hxg4 {[%emt 0:00:00]} 18. hxg4 {[%emt 0:00:17]} f5 {[%emt 0:00:00]} 19. Bd6 {[%emt 0:08:30]} Rf6 {[%emt 0:00:00]} 20. Bf4 {[%emt 0:02:25]} Re6 {[%emt 0:00:00]} (20... a6 $11) 21. b4 $16 {[%emt 0:13:28][%cal Ob4b5]} Nf6 {[%emt 0:00:00] Against b5} 22. gxf5 {[%emt 0:06:03]} gxf5 {[%emt 0:00:00]} 23. Rfc1 {[%emt 0:06:59] White is more active.} Ne4 {[%emt 0:06:30]} 24. Bxe4 {[%emt 0:00:32]} ({White should try} 24. b5 $1 $16) 24... fxe4 $11 {[%emt 0:00:00]} 25. b5 {[%emt 0:02:40]} a6 {[%emt 0:00:00]} 26. bxa6 {[%emt 0:02:20]} bxa6 {[%emt 0:01:30]} 27. Ra5 {[%emt 0:00:24]} Bf8 {[%emt 0:00:00] Against Rac5} 28. Rca1 {[%emt 0:02:24]} Bd6 {[%emt 0:00:00]} 29. Bxd6 {[%emt 0:00:22]} Rxd6 {[%emt 0:00:00]} 30. Rxa6 {[%emt 0:00:01]} Rxa6 {[%emt 0:00:00]} 31. Rxa6 $14 {[%emt 0:00:06][%mdl 4096] Endgame KR-KR} Kf7 {[%emt 0:00:00]} 32. Kg2 {[%emt 0:05:00]} Ke7 {[%emt 0:00:00]} 33. Ra7+ {[%emt 0:01:31]} Kd8 {[%emt 0:00:00]} 34. Rg7 {[%emt 0:05:49]} Rf6 {[%emt 0:00:00]} 35. b4 {[%emt 0:00:11][%cal Ob4b5]} Kc8 {[%emt 0:00:00]} 36. Ra7 {[%emt 0:02:06] Threatens to win with Ra6.} Rg6+ {[%emt 0:00:00]} 37. Kf1 {[%emt 0:01:32] Black must now prevent Ra6.} Rh6 {[%emt 0:00:00]} 38. Kg2 {[%emt 0:01:37]} Rg6+ {[%emt 0:00:00]} 39. Kh2 {[%emt 0:01:06]} Rf6 {[%emt 0:00:00]} 40. Kg3 {[%emt 0:00:54]} Rf3+ {[%emt 0:00:00]} 41. Kg2 {[%emt 0:30:06][%cal Ob4b5]} Rf6 $2 {[%emt 0:08:36] [#] Black cannot hold the game after this.} (41... Kb8 $11 {and Black stays safe.} 42. Rh7 Rf6) 42. Ra6 $1 $18 {[%emt 0:01:12]} Rg6+ {[%emt 0:11:38]} 43. Kf1 {[%emt 0:00:15] Hoping for b5.} Kb7 {[%emt 0:04:31] [#]} 44. b5 {[%emt 0:00:10] aiming for Rxc6.} Rh6 {[%emt 0:00:25]} (44... Rg5) 45. Rxc6 {[%emt 0:00:45]} Rh1+ {[%emt 0:06:03]} (45... Rxc6 46. bxc6+ Kxc6 47. f3 exf3 48. Kf2 Kd7 49. Kxf3 Ke7 50. Kg4) (45... Rh5 46. Rf6 Rh8) 46. Kg2 {[%emt 0:07:04]} Rh5 {[%emt 0:00:32]} 47. Rf6 {[%emt 0:00:00] Kg3 is the strong threat.} Kc7 $2 {[%emt 0:05:49]} (47... Rg5+ 48. Kf1 Rg7) 48. Kg3 {[%emt 0:00:00] White is clearly winning.} Rg5+ {[%emt 0:00:00]} 49. Kf4 {[%emt 0:00:00]} Rg2 {[%emt 0:00:00]} 50. Ke5 {[%emt 0:00:00]} Rg5+ {[%emt 0:00:00]} 51. Rf5 {[%emt 0:00:00] Weighted Error Value: White=0.12 (very precise) /Black=0.33} 1-0

[Event "Bangabandhu Premier Div League 2022"]
[Site "Dhaka"]
[Date "2022.12.02"]
[Round "3.8"]
[White "Jannatul, Ferdous"]
[Black "Chowdhury, Sohel"]
[Result "1/2-1/2"]
[ECO "B41"]
[WhiteElo "1861"]
[BlackElo "2004"]
[Annotator "TA"]
[PlyCount "74"]
[EventDate "2022.12.01"]
[EventCountry "BAN"]
[SourceTitle "playchess.com"]
[Source "ChessBase"]
[SourceQuality "1"]
[TimeControl "40/5400+30:1800+30"]

{[%evp 20,48,65,53,52,64,53,53,60,42,43,10,43,33,33,39,41,33,37,0,31,0,61,14,10,0,34,0,12,0,45]} 1. e4 {[%emt 0:00:25]} c5 {[%emt 0:00:12]} 2. Nf3 {[%emt 0:00:18]} e6 {[%emt 0:00:28]} 3. d4 {[%emt 0:00:03]} cxd4 {[%emt 0:00:10]} 4. Nxd4 {[%emt 0:00:02]} a6 {[%emt 0:00:25]} 5. c4 {[%emt 0:00:08]} Nf6 {[%emt 0:00:10]} 6. Nc3 {[%emt 1:32:34]} Qc7 {[%emt 0:00:41]} 7. a3 {[%emt 0:00:30]} b6 {[%emt 0:01:28]} 8. Be3 {[%emt 0:00:00]} Bb7 {[%emt 0:00:10]} 9. f3 {[%emt 0:00:00]} d6 {[%emt 0:00:29]} 10. Be2 {[%emt 0:00:00]} Be7 {[%emt 1:31:17]} 11. O-O {[%emt 0:00:00] White is more active.} O-O {[%emt 0:00:00] 11...Nbd7 deserves study. B41: Sicilian: Kan Variation: 5 c4.} 12. Rc1 {[%emt 0:00:00]} Nbd7 {[%emt 0:00:00]} 13. b4 {[%emt 0:00:00]} Rac8 {[%emt 0:00:00] White is slightly better.} 14. Nb3 {[%emt 0:00:00]} Rfe8 {[%emt 0:02:00]} 15. Kh1 {[%emt 0:04:00]} Ne5 {[%emt 0:00:30]} 16. Na4 {[%emt 0:00:00]} Nfd7 {[%emt 0:00:00]} 17. Qd2 {[%emt 0:01:00]} Bc6 {[%emt 0:01:00]} 18. Nc3 {[%emt 0:00:30]} Bb7 {[%emt 0:00:00]} 19. Na4 {[%emt 0:00:00]} Bc6 $1 {[%emt 0:00:00]} 20. Nc3 {[%emt 0:00:00]} Qb8 {[%emt 0:00:00]} (20... Bb7 $11) 21. Rfd1 {[%emt 0:01:30]} (21. f4 $14 {is superior.} Ng6 22. Nd4) 21... Ba8 $11 {[%emt 0:02:00]} 22. Na4 {[%emt 0:00:30]} Bc6 {[%emt 0:00:00]} (22... b5 $5 {[%cal Rb5a4]} 23. Nb2 d5 $11) 23. Nc3 {[%emt 0:00:00]} Ba8 {[%emt 0:00:00]} 24. Na4 {[%emt 0:00:00]} Bc6 {[%emt 0:00:00] [#]   Weighted Error Value: White=0.16 (very precise) /Black=0.09 (flawless)} {Predecessor:} 25. Nb2 $146 Nf6 26. a4 Ba8 27. a5 bxa5 28. Nxa5 d5 29. c5 dxe4 30. f4 Neg4 31. Bxa6 Rcd8 32. Bd4 e3 33. Qe1 Qxf4 34. Qg3 Rxd4 35. Qxf4 Rxf4 36. c6 Nf2+ 37. Kg1 Nxd1 {0-1 (31) Tari,A (2521)-Hansen,E (2573) Berlin 2015} 1/2-1/2

[Event "Bangabandhu Premier Div League 2022"]
[Site "Dhaka"]
[Date "2022.12.02"]
[Round "3.9"]
[White "Murshed, Niaz"]
[Black "abzid, Rahman"]
[Result "1-0"]
[ECO "E08"]
[WhiteElo "2419"]
[BlackElo "2043"]
[Annotator "TA"]
[PlyCount "71"]
[EventDate "2022.11.30"]
[EventType "team-tourn"]
[EventCountry "BAN"]
[SourceTitle "playchess.com"]
[Source "ChessBase"]
[SourceQuality "1"]
[TimeControl "40/5400+30:1800+30"]

{[%evp 20,71,27,9,15,0,0,0,0,0,31,32,33,37,39,34,42,45,93,88,210,240,227,222,272,272,286,272,440,429,471,453,493,478,515,445,506,495,574,558,568,567,1043,1016,980,963,1277,1247,1529,1361,2199,1798,1993,883]} 1. Nf3 {[%emt 0:00:05]} d5 {[%emt 0:00:18]} 2. c4 {[%emt 0:00:21]} e6 {[%emt 0:00:19]} 3. g3 {[%emt 0:00:32]} Nf6 {[%emt 0:00:16]} 4. Bg2 {[%emt 0:00:04]} Be7 {[%emt 0:00:20]} 5. O-O {[%emt 0:00:32]} O-O {[%emt 0:00:06]} 6. d4 {[%emt 0:02:20]} c6 {[%emt 0:02:04]} 7. Qc2 {[%emt 0:01:02]} Nbd7 {[%emt 0:01:39]} 8. Rd1 {[%emt 0:03:28]} b6 {[%emt 0:02:39]} 9. b3 {[%emt 0:01:00][%cal Bb2b3,Bb3c4,Bc4c5][%mdl 32]} Bb7 {[%emt 0:04:48] 9...Bb7 scores better than 9...Ba6.} 10. Nc3 {[%emt 0:02:45]} Qc8 {[%emt 0:04:02]} 11. Bb2 {[%emt 0:07:57]} Ba6 {[%emt 0:04:49] E08: Closed Catalan: Main Line: 7 Qc2.} 12. Nd2 {[%emt 0:09:33]} b5 $1 {[%emt 0:01:14] [#]} 13. Ncb1 $146 {[%emt 0:21:05]} ({Predecessor:} 13. e4 dxc4 14. bxc4 bxc4 15. Nf1 Rd8 16. Ne3 Rb8 17. Ne2 Qc7 18. Rab1 Qa5 19. Bc3 {½-½ (101) Maletin,P (2581)-Bivol,A (2350) St Petersburg 2015}) 13... bxc4 {[%emt 0:06:15] The position is equal.} 14. bxc4 {[%emt 0:00:03]} Nb6 {[%emt 0:03:02]} 15. c5 {[%emt 0:04:49]} Nc4 {[%emt 0:01:36]} 16. Nxc4 {[%emt 0:00:15]} Bxc4 {[%emt 0:00:17]} 17. e4 {[%emt 0:00:29]} Qa6 {[%emt 0:14:32]} 18. e5 Ne4 {[%emt 0:12:31] [#]} (18... Ne8 $14 {should be considered.}) 19. f3 $1 $16 {[%emt 0:05:24][%cal Bf2f3,Bf3e4][%mdl 32]} Be2 {[%emt 0:12:16] Loses the game.} (19... Nxc5 $16 20. dxc5 Bxc5+ 21. Bd4 Bxd4+ 22. Rxd4 c5) 20. fxe4 $18 {[%emt 0:01:42] And now Rd2 would win.} Bxd1 {[%emt 0:00:55]} 21. Qxd1 {[%emt 0:00:08]} Rab8 {[%emt 0:02:32]} 22. Bf1 {[%emt 0:04:21]} Qb7 {[%emt 0:02:31]} 23. Bc3 {[%emt 0:01:09]} dxe4 $2 {[%emt 0:03:24]} (23... Bg5 {is a better defense.} 24. exd5 exd5) 24. Nd2 {[%emt 0:01:55] White is clearly winning.} e3 {[%emt 0:05:31]} 25. Ne4 {[%emt 0:05:58]} Qd7 {[%emt 0:02:56]} 26. Qf3 {[%emt 0:04:38]} f5 {[%emt 0:04:47]} 27. exf6 {[%emt 0:00:42]} Bxf6 {[%emt 0:00:23]} 28. Qxe3 {[%emt 0:00:22]} Kh8 {[%emt 0:00:36]} 29. Nxf6 {[%emt 0:02:29]} Rxf6 {[%emt 0:00:38]} 30. d5 {[%emt 0:01:24][%cal Bd4d5,Bd5d6][%mdl 32]} e5 {[%emt 0:01:04]} 31. Bxe5 {[%emt 0:02:59]} Re8 {[%emt 0:00:30]} 32. Qd4 {[%emt 0:00:15]} Rf7 {[%emt 0:01:37]} 33. d6 {[%emt 0:02:09]} Qf5 {[%emt 0:00:23]} 34. Re1 {[%emt 0:03:23][%cal Oe5g7] [#] White threatens Bxg7+! and mate.} Rb8 {[%emt 0:03:59]} 35. Bd3 {[%emt 0:01:09]} Qh3 {[%emt 0:00:39]} 36. Qh4 {[%emt 0:01:35] Weighted Error Value: White=0.02 (flawless) /Black=0.42} (36. d7 $142 Qxd7 37. Qe4) 1-0